bitfinex-derivatives/quotes_SOLF0:USTF0_20250421
["timestamp","ask_amount","ask_price","bid_price","bid_amount"]
[1745195595959,71.81649241,142.65,142.47,49.254]
[1745195596165,71.81649241,142.65,142.51,25.05649241]
[1745195596367,46.76,142.65,142.52,7.41379315]
[1745195596568,7.0135,142.61,142.55,7.0162]
[1745195596869,45.38,142.6,142.51,25.05649241]
[1745195597070,45.38,142.6,142.54,7.0167]
[1745195597272,45.38,142.6,142.47,74.31049241]
[1745195597463,49.1314,142.6,142.48,7.41966915]
[1745195597665,49.1314,142.6,142.55,7.0158]
[1745195597868,49.1314,142.6,142.5,25.05649241]
[1745195598171,45.38,142.6,142.53,25.05649241]
[1745195598470,45.38,142.6,142.54,7.41713784]
[1745195598672,45.38,142.6,142.55,7.41776998]
[1745195598867,45.38,142.64,142.53,25.05649241]
[1745195599074,45.38,142.64,142.54,7.41700588]
[1745195599267,45.38,142.64,142.55,7.41700588]
[1745195599473,45.38,142.64,142.56,7.41700588]
[1745195599673,45.38,142.64,142.53,25.05649241]
[1745195599878,52.3923,142.64,142.57,7.015]
[1745195600173,3.7514,142.67,142.56,25.05649241]
[1745195600374,3.7514,142.67,142.62,7.0124]
[1745195600777,3.7514,142.67,142.56,25.05649241]
[1745195601074,3.7514,142.67,142.6,7.0138]
[1745195601273,3.7514,142.67,142.53,25.05649241]
[1745195601274,3.7514,142.67,142.56,25.05649241]
[1745195601470,600.9,142.68,142.59,25.05649241]
[1745195601675,600.9,142.68,142.62,25.05649241]
[1745195601872,600.9,142.68,142.6,7.41745945]
[1745195601873,600.9,142.68,142.57,60.14792165]
[1745195602072,600.9,142.68,142.58,7.41669704]
[1745195602273,600.9,142.68,142.56,25.05649241]
[1745195602477,7.0129,142.62,142.55,7.0158]
[1745195602675,45.38,142.61,142.5,32.77209241]
[1745195602876,45.38,142.61,142.51,7.42722175]
[1745195603074,45.38,142.61,142.5,32.77209241]
[1745195603075,45.38,142.61,142.52,7.42650967]
[1745195603275,45.38,142.61,142.5,32.77209241]
[1745195603577,45.38,142.61,142.54,7.0164]
[1745195603773,45.38,142.61,142.5,32.77209241]
[1745195603969,45.38,142.61,142.51,7.42876864]
[1745195604280,3.8149,142.63,142.56,25.05649241]
[1745195605179,44.02,142.65,142.56,25.05649241]
[1745195605578,44.02,142.65,142.61,7.0133]
[1745195606274,44.02,142.65,142.62,7.0129]
[1745195606469,2.57762561,144.01,142.62,25.05649241]
[1745195606470,555.46,142.75,142.62,25.05649241]
[1745195606669,559.3673,142.75,142.65,25.05649241]
[1745195606869,559.3673,142.75,142.7,7.0085]
[1745195607074,555.46,142.75,142.68,25.05649241]
[1745195607268,44.02,142.76,142.69,25.05649241]
[1745195607474,47.9273,142.8,142.69,25.05649241]
[1745195607778,44.02,142.85,142.75,25.05649241]
[1745195608081,3.9073,142.87,142.78,25.05649241]
[1745195608982,10.9083,142.87,142.81,7.0032]
[1745195609173,3.9073,142.87,142.78,25.05649241]
[1745195609369,3.9073,142.87,142.76,44.02]
[1745195609576,3.9073,142.87,142.78,7.005]
[1745195609778,3.9073,142.87,142.79,62.0]
[1745195609979,3.9073,142.87,142.8,7.0036]
[1745195610277,3.9073,142.87,142.79,62.0]
[1745195611381,599.48,142.89,142.8,25.05649241]
[1745195611982,47.742,142.93,142.83,25.05649241]
[1745195612276,72.79849241,142.93,142.79,62.0]
[1745195612580,47.742,142.93,142.81,25.05649241]
[1745195612971,54.7397,142.93,142.86,7.0007]
[1745195613174,47.742,142.93,142.84,25.05649241]
[1745195613383,72.79849241,142.93,142.78,25.05649241]
[1745195613582,69.05649241,142.93,142.78,25.05649241]
[1745195613778,69.05649241,142.93,142.75,47.7536]
[1745195613779,3.9159,142.92,142.81,25.05649241]
[1745195613980,44.0,142.93,142.84,25.05649241]
[1745195614486,25.05649241,142.9,142.78,25.05649241]
[1745195614781,25.05649241,142.87,142.72,29.09229241]
[1745195614981,25.05649241,142.84,142.68,3.988]
[1745195615181,25.05649241,142.81,142.71,7.008]
[1745195615378,597.66,142.86,142.69,25.05649241]
[1745195615379,42.64,142.8,142.69,25.05649241]
[1745195615573,42.64,142.83,142.79,7.0041]
[1745195615782,42.64,142.84,142.75,25.05649241]
[1745195616172,42.64,142.84,142.74,7.0069]
[1745195616375,42.64,142.84,142.7,42.64]
[1745195616582,42.64,142.84,142.72,25.05649241]
[1745195616780,555.0,142.86,142.75,25.05649241]
[1745195616985,42.64,142.85,142.75,25.05649241]
[1745195617174,49.6416,142.85,142.75,25.05649241]
[1745195617382,42.64,142.85,142.72,25.05649241]
[1745195617785,7.0045,142.8,142.72,32.06439241]
[1745195617978,42.64,142.79,142.72,25.05649241]
[1745195618286,7.0065,142.75,142.68,10.9979]
[1745195618484,3.6535,142.78,142.68,3.988]
[1745195618882,554.76,142.77,142.61,558.4825]
[1745195619084,554.76,142.77,142.62,25.05649241]
[1745195619278,7.0084,142.71,142.64,7.0118]
[1745195619481,42.64,142.71,142.62,25.05649241]
[1745195619683,42.64,142.7,142.62,25.05649241]
[1745195620179,42.64,142.7,142.6,42.64]
[1745195620486,42.64,142.75,142.65,25.05649241]
[1745195620985,42.64,142.75,142.67,7.0101]
[1745195621687,42.64,142.75,142.68,25.05649241]
[1745195621881,42.64,142.75,142.65,25.05649241]
[1745195622085,42.64,142.75,142.68,7.0095]
[1745195622280,42.64,142.75,142.62,25.05649241]
[1745195622684,7.007,142.74,142.67,7.0103]
[1745195622888,42.64,142.75,142.65,25.05649241]
[1745195623184,42.64,142.75,142.62,25.05649241]
[1745195623490,42.64,142.75,142.65,25.05649241]
[1745195623792,42.64,142.75,142.69,7.009]
[1745195624088,42.64,142.75,142.68,25.05649241]
[1745195624888,42.64,142.75,142.72,7.0076]
[1745195625984,42.64,142.75,142.73,7.0073]
[1745195626384,42.64,142.75,142.68,25.05649241]
[1745195626587,42.66,142.79,142.71,25.05649241]
[1745195626791,42.66,142.81,142.67,7.4613]
[1745195626987,3.773,142.78,142.67,7.4613]
[1745195627287,25.05649241,142.76,142.63,25.05649241]
[1745195627487,597.56,142.75,142.63,25.05649241]
[1745195627686,597.56,142.75,142.67,25.05649241]
[1745195627888,597.56,142.75,142.64,25.05649241]
[1745195628687,597.56,142.75,142.7,7.0085]
[1745195628888,597.56,142.75,142.64,25.05649241]
[1745195629598,3.773,142.78,142.73,25.05649241]
[1745195629892,3.773,142.78,142.7,25.05649241]
[1745195630394,3.773,142.78,142.75,7.0062]
[1745195630593,41.34,142.81,142.7,25.05649241]
[1745195631286,41.34,142.81,142.73,25.05649241]
[1745195631488,41.34,142.81,142.78,7.0047]
[1745195631788,41.34,142.81,142.73,25.05649241]
[1745195631990,41.34,142.81,142.8,7.004]
[1745195632189,3.6793,142.84,142.76,25.05649241]
[1745195632388,29.04909241,142.91,142.79,25.05649241]
[1745195632389,41.34,142.88,142.79,25.05649241]
[1745195632586,41.34,142.88,142.82,25.05649241]
[1745195632791,41.34,142.88,142.79,25.05649241]
[1745195633392,41.34,142.88,142.78,7.8852]
[1745195633594,41.34,142.88,142.8,25.05649241]
[1745195633797,41.34,142.88,142.78,7.8852]
[1745195633991,41.34,142.88,142.8,25.05649241]
[1745195635598,41.34,142.88,142.83,25.05649241]
[1745195636096,3.8886,142.89,142.83,25.05649241]
[1745195636994,3.8886,142.89,142.8,25.05649241]
[1745195637195,3.8886,142.89,142.78,7.8852]
[1745195637395,7.001,142.87,142.82,7.003]
[1745195637595,41.32,142.86,142.77,25.05649241]
[1745195637896,48.3211,142.86,142.8,7.0036]
[1745195638095,41.32,142.86,142.75,41.32]
[1745195638295,66.37649241,142.86,142.71,66.37649241]
[1745195638500,25.05649241,142.83,142.68,32.97339241]
[1745195638799,25.05649241,142.8,142.66,29.93561322]
[1745195638993,603.9177,142.79,142.67,25.05649241]
[1745195639199,600.032,142.79,142.7,25.05649241]
[1745195639497,600.032,142.79,142.74,7.0068]
[1745195639701,600.032,142.79,142.7,25.05649241]
[1745195639997,558.712,142.79,142.7,25.05649241]
[1745195640399,583.76849241,142.79,142.64,25.05649241]
[1745195640700,1.28473881,142.78,142.64,25.05649241]
[1745195640900,1.28473881,142.78,142.7,25.05649241]
[1745195641096,558.712,142.79,142.7,25.05649241]
[1745195641400,554.7,142.79,142.73,25.05649241]
[1745195641695,41.32,142.8,142.73,25.05649241]
[1745195642200,41.32,142.8,142.76,25.05649241]
[1745195642399,45.0393,142.85,142.76,25.05649241]
[1745195642599,45.0393,142.85,142.79,25.05649241]
[1745195643104,45.0393,142.85,142.76,41.34]
[1745195643298,45.0393,142.85,142.8,7.0037]
[1745195643495,45.0393,142.85,142.77,25.05649241]
[1745195643700,45.0393,142.85,142.8,25.05649241]
[1745195643996,41.34,142.85,142.8,25.05649241]
[1745195644300,41.34,142.85,142.77,28.97809241]
[1745195645003,41.34,142.85,142.8,25.05649241]
[1745195645203,41.34,142.85,142.72,25.05649241]
[1745195645497,41.34,142.85,142.75,25.05649241]
[1745195645803,41.34,142.85,142.76,7.22571517]
[1745195646002,3.8085,142.84,142.72,25.05649241]
[1745195646500,558.5085,142.84,142.72,25.05649241]
[1745195647406,554.7,142.84,142.75,25.05649241]
[1745195647603,554.7,142.84,142.8,7.0037]
[1745195647906,554.7,142.84,142.72,25.05649241]
[1745195648199,3.6569,142.83,142.73,7.24116164]
[1745195648400,25.05649241,142.81,142.73,7.24116164]
[1745195648601,44.0546,142.8,142.73,7.24116164]
[1745195648795,44.0546,142.8,142.66,25.05649241]
[1745195649001,25.05649241,142.78,142.63,25.05649241]
[1745195649201,3.8571,142.79,142.69,7.0094]
[1745195649397,25.05649241,142.76,142.61,29.93561322]
[1745195649604,594.72,142.75,142.62,7.41405576]
[1745195649803,7.0099,142.69,142.63,7.0123]
[1745195650100,25.05649241,142.73,142.61,29.93561322]
[1745195650101,40.02,142.68,142.61,29.93561322]
[1745195650306,40.02,142.68,142.65,7.0113]
[1745195650498,40.02,142.68,142.61,29.93561322]
[1745195651003,40.02,142.68,142.63,7.0123]
[1745195651198,40.02,142.68,142.61,6.97961322]
[1745195651404,25.05649241,142.63,142.61,5.99781322]
[1745195651698,7.0138,142.61,142.58,89.43205018]
[1745195651901,554.88,142.62,142.58,89.43205018]
[1745195652099,554.88,142.91,142.61,25.05649241]
[1745195652406,25.05649241,142.81,142.65,25.05649241]
[1745195652605,25.05649241,142.78,142.66,7.0109]
[1745195652902,598.1,142.77,142.62,51.0587]
[1745195653103,25.05649241,142.75,142.62,7.8387]
[1745195653307,25.05649241,142.72,142.59,3.9776]
[1745195653508,167.22,142.71,142.59,3.9776]
[1745195653706,43.22,142.71,142.61,25.05649241]
[1745195654108,43.22,142.71,142.59,3.9776]
[1745195654609,43.22,142.71,142.57,4.0396]
[1745195655411,124.0,142.7,142.54,25.05649241]
[1745195655605,43.22,142.71,142.63,25.05649241]
[1745195655809,43.22,142.78,142.66,25.05649241]
[1745195656005,43.22,142.77,142.66,25.05649241]
[1745195656706,43.22,142.77,142.63,25.05649241]
[1745195656904,25.05649241,142.76,142.62,11.6273]
[1745195657309,25.05649241,142.76,142.64,7.0118]
[1745195657605,43.22,142.77,142.63,25.05649241]
[1745195657810,7.0064,142.76,142.63,25.05649241]
[1745195658309,43.22,142.77,142.63,25.05649241]
[1745195658613,43.22,142.77,142.69,25.05649241]
[1745195658814,43.22,142.77,142.74,7.0065]
[1745195659112,43.22,142.77,142.69,25.05649241]
[1745195659509,43.22,142.77,142.73,7.0073]
[1745195659714,43.22,142.77,142.69,25.05649241]
[1745195660216,43.22,142.77,142.76,7.006]
[1745195660711,1.39958012,142.9,142.76,50.22]
[1745195660913,1.39958012,142.9,142.84,25.05649241]
[1745195661612,43.22,142.98,142.84,25.05649241]
[1745195661808,43.22,142.98,142.77,7.6904]
[1745195661809,68.27649241,142.98,142.77,7.6904]
[1745195662009,43.22,142.98,142.85,32.44779958]
[1745195662215,50.2152,142.98,142.91,6.9982]
[1745195662514,43.22,142.98,142.86,3.9125]
[1745195663011,68.27649241,142.98,142.86,3.9125]
[1745195663206,43.22,142.98,142.86,28.96899241]
[1745195663505,43.22,142.98,142.87,7.0001]
[1745195663911,6.9966,142.96,142.87,7.0001]
[1745195664413,43.22,142.98,142.88,6.9999]
[1745195664713,68.27649241,142.98,142.86,3.9125]
[1745195664913,68.27649241,142.98,142.84,43.22]
[1745195665115,68.27649241,142.98,142.83,25.05649241]
[1745195665514,1.2829448,142.97,142.83,25.05649241]
[1745195665714,68.27649241,142.98,142.83,25.05649241]
[1745195666209,1.28297897,142.97,142.83,25.05649241]
[1745195666810,6.9977,142.93,142.84,7.0016]
[1745195667017,43.2,142.92,142.84,7.0016]
[1745195667214,43.2,142.92,142.83,25.05649241]
[1745195668115,43.2,142.92,142.85,7.0015]
[1745195668313,43.2,142.92,142.83,25.05649241]
[1745195668516,43.2,142.92,142.87,7.0005]
[1745195669216,43.2,142.92,142.83,25.05649241]
[1745195669717,43.2,142.92,142.86,7.0009]
[1745195670118,43.2,142.92,142.83,25.05649241]
[1745195670521,43.2,142.96,142.86,25.05649241]
[1745195670913,6.9981,142.93,142.86,32.05749241]
[1745195671115,43.2,142.96,142.83,25.05649241]
[1745195671420,6.9984,142.92,142.85,7.0011]
[1745195671814,6.9984,142.92,142.83,25.05649241]
[1745195672020,43.2,142.96,142.86,25.05649241]
[1745195672519,50.1962,142.96,142.89,6.9996]
[1745195673018,50.1962,142.96,142.86,25.05649241]
[1745195673420,50.1962,142.96,142.86,68.23649241]
[1745195673720,43.2,142.96,142.89,25.05649241]
[1745195673922,43.2,142.96,142.86,68.23649241]
[1745195674520,43.2,142.96,142.89,25.05649241]
[1745195674819,554.98,142.99,142.89,25.05649241]
[1745195675221,6.9956,142.98,142.92,6.9977]
[1745195675422,6.9956,142.98,142.89,25.05649241]
[1745195675821,6.9956,142.98,142.87,11.3961]
[1745195676022,561.9748,142.99,142.9,25.05649241]
[1745195676221,554.98,142.99,142.9,25.05649241]
[1745195676520,554.98,142.99,142.87,36.45259241]
[1745195676720,6.9961,142.97,142.87,36.45259241]
[1745195677021,554.98,142.99,142.87,36.45259241]
[1745195677319,580.03649241,142.99,142.87,7.5502]
[1745195677520,25.05649241,142.96,142.82,25.05649241]
[1745195677721,43.18,142.95,142.82,25.05649241]
[1745195677916,25.05649241,142.93,142.79,25.05649241]
[1745195678112,25.05649241,142.93,142.76,36.23699241]
[1745195678520,25.05649241,142.93,142.79,25.05649241]
[1745195678715,43.18,142.95,142.82,25.05649241]
[1745195678910,50.1767,142.95,142.85,25.05649241]
[1745195679119,43.18,142.95,142.82,25.05649241]
[1745195679522,6.9986,142.91,142.85,7.0014]
[1745195679722,43.18,142.9,142.85,7.0014]
[1745195680226,50.1791,142.9,142.85,7.0014]
[1745195680417,43.18,142.9,142.83,7.0021]
[1745195680723,7.0007,142.87,142.79,25.05649241]
[1745195680918,597.54,142.9,142.82,7.0026]
[1745195681222,597.54,142.9,142.79,25.05649241]
[1745195681522,597.54,142.9,142.76,36.23699241]
[1745195681821,604.5392,142.9,142.79,25.05649241]
[1745195682023,597.54,142.9,142.79,25.05649241]
[1745195682231,597.54,142.9,142.76,36.23699241]
[1745195682415,7.0002,142.88,142.76,36.23699241]
[1745195682615,597.54,142.9,142.76,36.23699241]
[1745195682815,597.54,142.9,142.79,25.05649241]
[1745195683019,597.54,142.9,142.82,25.05649241]
[1745195683320,41.88,142.95,142.82,25.05649241]
[1745195683624,41.88,142.95,142.9,6.9987]
[1745195683827,41.88,142.95,142.85,25.05649241]
[1745195684025,41.88,142.95,142.83,7.34927039]
[1745195684324,41.88,142.95,142.8,66.93649241]
[1745195684325,66.93649241,142.95,142.8,66.93649241]
[1745195684525,6.9989,142.91,142.84,7.0019]
[1745195684726,41.88,142.9,142.8,66.93649241]
[1745195685126,41.88,142.9,142.83,25.05649241]
[1745195685329,41.88,142.94,142.86,25.05649241]
[1745195685828,41.88,142.94,142.83,25.05649241]
[1745195686229,41.88,142.94,142.86,7.0009]
[1745195686230,6.9985,142.92,142.86,7.0009]
[1745195686827,6.9987,142.91,142.85,7.0014]
[1745195687228,41.88,142.94,142.83,25.05649241]
[1745195689133,6.9987,142.91,142.85,7.0011]
[1745195689631,6.9982,142.92,142.86,7.001]
[1745195689830,41.88,142.94,142.83,25.05649241]
[1745195690229,41.88,142.94,142.88,6.9997]
[1745195690524,41.88,142.94,142.83,25.05649241]
[1745195690922,6.9987,142.91,142.85,7.0014]
[1745195691126,25.05649241,142.93,142.8,25.05649241]
[1745195691525,41.88,142.94,142.83,25.05649241]
[1745195691832,41.88,142.94,142.8,25.05649241]
[1745195692933,25.05649241,142.93,142.8,25.05649241]
[1745195693530,41.88,142.94,142.8,25.05649241]
[1745195693930,6.9992,142.9,142.84,7.0017]
[1745195694132,6.9992,142.9,142.8,25.05649241]
[1745195694133,41.88,142.89,142.8,25.05649241]
[1745195694431,48.8799,142.89,142.83,7.0022]
[1745195694630,41.88,142.89,142.77,66.93649241]
[1745195694934,7.0001,142.88,142.77,66.93649241]
[1745195695132,41.88,142.89,142.77,66.93649241]
[1745195695732,7.0006,142.88,142.82,7.0029]
[1745195695932,7.0006,142.88,142.77,66.93649241]
[1745195696134,41.88,142.89,142.77,25.05649241]
[1745195696332,7.0014,142.86,142.8,7.0036]
[1745195696526,66.93649241,142.89,142.76,11.1805]
[1745195696732,25.05649241,142.86,142.72,25.05649241]
[1745195697030,25.05649241,142.83,142.69,25.05649241]
[1745195697224,41.88,142.82,142.68,11.6734]
[1745195697429,554.46,142.81,142.68,11.6734]
[1745195698036,7.0046,142.79,142.73,7.0071]
[1745195698235,554.46,142.81,142.68,11.6734]
[1745195698926,554.46,142.81,142.7,25.05649241]
[1745195699132,554.46,142.81,142.68,52.2534]
[1745195699330,554.46,142.81,142.76,25.05649241]
[1745195699526,554.46,142.81,142.73,25.05649241]
[1745195699735,40.58,142.81,142.74,7.39640531]
[1745195700033,40.58,142.81,142.74,32.45289772]
[1745195700233,40.58,142.81,142.75,7.006]
[1745195700534,40.58,142.81,142.68,36.72989241]
[1745195700738,40.58,142.81,142.8,7.004]
[1745195700935,595.18,142.85,142.77,25.05649241]
[1745195701135,595.18,142.85,142.78,7.40671776]
[1745195701534,595.18,142.85,142.79,7.40671776]
[1745195701731,595.18,142.85,142.82,7.0029]
[1745195701931,595.18,142.85,142.79,7.40671776]
[1745195702234,595.18,142.85,142.78,7.7255]
[1745195702430,595.18,142.85,142.82,7.0027]
[1745195702626,595.18,142.85,142.78,7.7255]
[1745195703030,595.18,142.85,142.79,7.42281524]
[1745195703437,595.18,142.85,142.8,7.42281524]
[1745195703639,595.18,142.85,142.8,32.47930765]
[1745195703640,40.58,142.85,142.8,32.47930765]
[1745195703833,40.58,142.85,142.81,7.42281524]
[1745195704639,40.58,142.85,142.82,7.42281524]
[1745195705540,6.9992,142.9,142.83,7.42281524]
[1745195705735,40.58,142.89,142.83,7.42281524]
[1745195705939,47.5797,142.89,142.84,14.42471524]
[1745195706541,40.58,142.89,142.83,7.0024]
[1745195706738,40.58,142.89,142.78,7.7255]
[1745195706937,7.001,142.87,142.81,7.0032]
[1745195707139,7.001,142.87,142.78,7.7255]
[1745195707341,40.58,142.89,142.82,7.44533113]
[1745195707736,25.05649241,142.88,142.78,7.7255]
[1745195708041,32.05689241,142.88,142.82,7.0027]
[1745195708238,7.0004,142.88,142.82,7.0027]
[1745195708740,7.0006,142.87,142.82,7.0027]
[1745195708941,7.0006,142.87,142.81,7.0035]
[1745195709140,7.0002,142.88,142.78,7.7255]
[1745195709447,40.58,142.89,142.81,7.0034]
[1745195709838,25.05649241,142.88,142.75,25.05649241]
[1745195710042,25.05649241,142.88,142.8,7.0039]
[1745195710342,40.58,142.89,142.76,7.45179027]
[1745195710844,40.58,142.89,142.77,7.45179027]
[1745195711041,7.0009,142.87,142.81,7.003]
[1745195711338,40.58,142.89,142.75,25.05649241]
[1745195711644,40.58,142.89,142.82,7.0027]
[1745195711844,40.58,142.89,142.75,25.05649241]
[1745195712145,7.0006,142.87,142.76,7.26838182]
[1745195712350,7.0006,142.87,142.77,7.44761198]
[1745195712849,7.0006,142.87,142.81,7.0032]
[1745195713049,40.58,142.89,142.76,3.7642]
[1745195713348,40.58,142.89,142.8,7.0037]
[1745195713547,7.0014,142.86,142.8,7.0037]
[1745195713944,65.63649241,142.89,142.8,7.0037]
[1745195714147,25.05649241,142.86,142.72,33.03359241]
[1745195714346,25.05649241,142.86,142.72,36.79779241]
[1745195714547,25.05649241,142.86,142.73,7.45264811]
[1745195715055,40.58,142.89,142.75,25.05649241]
[1745195715251,25.05649241,142.88,142.75,25.05649241]
[1745195715549,25.05649241,142.88,142.72,11.7413]
[1745195715550,25.05649241,142.88,142.72,36.79779241]
[1745195715749,25.05649241,142.88,142.75,25.05649241]
[1745195715949,40.58,142.89,142.75,25.05649241]
[1745195716146,7.0029,142.83,142.77,7.0051]
[1745195716349,40.58,142.82,142.75,25.05649241]
[1745195716650,40.58,142.82,142.77,7.0054]
[1745195716949,40.58,142.82,142.72,36.79779241]
[1745195717143,7.0038,142.81,142.75,7.006]
[1745195717348,40.58,142.82,142.72,11.7413]
[1745195717742,7.0048,142.79,142.74,7.0066]
[1745195718052,40.58,142.82,142.66,65.63649241]
[1745195718350,25.05649241,142.8,142.67,15.17604203]
[1745195718553,25.05649241,142.8,142.68,7.4590309]
[1745195718852,7.0051,142.78,142.68,7.4590309]
[1745195719053,39.28,142.77,142.68,7.4590309]
[1745195719346,39.28,142.77,142.67,7.5993]
[1745195719551,64.33649241,142.77,142.65,3.7901]
[1745195719947,7.0073,142.74,142.67,7.0101]
[1745195720254,117.2543919,142.98,142.72,25.05649241]
[1745195720451,25.05649241,142.87,142.72,64.35649241]
[1745195720753,25.05649241,142.87,142.73,3.7901]
[1745195720754,39.3,142.86,142.73,3.7901]
[1745195720950,64.35649241,142.86,142.77,7.0055]
[1745195721252,64.35649241,142.86,142.73,3.7901]
[1745195721746,25.05649241,142.83,142.68,7.5993]
[1745195721944,554.78,142.82,142.7,25.05649241]
[1745195722151,39.3,142.81,142.69,7.87696128]
[1745195722354,39.3,142.81,142.7,7.87696128]
[1745195722856,39.3,142.81,142.71,7.87696128]
[1745195723052,39.3,142.81,142.72,7.87696128]
[1745195723651,39.3,142.81,142.73,7.87696128]
[1745195723855,39.3,142.81,142.77,7.0054]
[1745195724454,39.3,142.81,142.76,7.0058]
[1745195724856,39.3,142.81,142.71,3.9833]
[1745195725055,39.3,142.81,142.72,7.86940681]
[1745195725355,25.05649241,142.8,142.72,7.86940681]
[1745195725654,25.05649241,142.77,142.63,3.9833]
[1745195725857,39.3,142.76,142.63,3.9833]
[1745195726051,7.0073,142.74,142.67,7.01]
[1745195726355,554.82,142.73,142.63,3.9833]
[1745195726546,554.82,142.73,142.62,14.7134]
[1745195726547,7.0095,142.69,142.62,14.7134]
[1745195726748,39.3,142.68,142.57,29.03979241]
[1745195727150,39.3,142.68,142.61,7.013]
[1745195727351,39.3,142.68,142.58,7.87727925]
[1745195727554,39.3,142.68,142.57,29.03979241]
[1745195728557,39.3,142.68,142.57,3.9833]
[1745195728756,64.35649241,142.68,142.55,14.743]
[1745195728959,1.28573248,142.67,142.55,14.743]
[1745195729158,1.28573248,142.67,142.53,27.98678262]
[1745195729360,1.28573248,142.67,142.53,25.05649241]
[1745195729554,7.0122,142.64,142.56,7.0158]
[1745195729857,39.32,142.63,142.53,25.05649241]
[1745195730051,39.32,142.63,142.57,7.0151]
[1745195730251,39.32,142.63,142.56,25.05649241]
[1745195730454,39.32,142.68,142.56,25.05649241]
[1745195730655,7.0113,142.66,142.56,25.05649241]
[1745195730851,64.37649241,142.68,142.51,3.8268]
[1745195731056,39.32,142.68,142.56,25.05649241]
[1745195731258,64.37649241,142.68,142.56,25.05649241]
[1745195731459,64.37649241,142.68,142.53,25.05649241]
[1745195731659,7.0124,142.63,142.56,7.0155]
[1745195731856,39.32,142.62,142.53,25.05649241]
[1745195732361,46.3332,142.62,142.55,7.0159]
[1745195732561,39.32,142.62,142.53,25.05649241]
[1745195732862,7.0135,142.61,142.54,7.0167]
[1745195733463,39.32,142.62,142.51,28.88329241]
[1745195733964,7.0142,142.6,142.54,7.0166]
[1745195734260,39.32,142.62,142.51,28.88329241]
[1745195734563,7.0167,142.55,142.49,7.6624]
[1745195734863,39.32,142.55,142.49,7.6624]
[1745195735054,7.0169,142.54,142.49,7.6624]
[1745195735253,39.32,142.55,142.49,7.6624]
[1745195735656,555.3,142.54,142.45,3.887]
[1745195735858,555.3,142.54,142.45,10.9081]
[1745195736256,7.0186,142.51,142.45,10.9081]
[1745195736462,39.34,142.5,142.45,7.0211]
[1745195736759,39.34,142.5,142.43,7.0219]
[1745195737067,39.34,142.5,142.41,25.05649241]
[1745195737365,39.34,142.5,142.4,3.701]
[1745195738057,39.34,142.5,142.44,25.05649241]
[1745195738254,39.34,142.5,142.4,3.701]
[1745195738965,7.0201,142.48,142.41,7.0231]
[1745195739263,64.39649241,142.5,142.32,39.30180286]
[1745195739464,64.39649241,142.5,142.33,18.98392889]
[1745195739665,64.39649241,142.5,142.34,25.05649241]
[1745195739861,64.39649241,142.5,142.35,7.47658608]
[1745195740062,555.3,142.54,142.43,25.05649241]
[1745195740366,38.08,142.53,142.39,38.08]
[1745195740665,38.08,142.53,142.38,25.05649241]
[1745195740666,7.0196,142.49,142.38,25.05649241]
[1745195740865,38.08,142.48,142.41,25.05649241]
[1745195741068,38.08,142.48,142.44,25.05649241]
[1745195741259,38.08,142.48,142.43,15.36927095]
[1745195741462,38.08,142.48,142.42,7.6959]
[1745195741663,7.0206,142.47,142.41,7.023]
[1745195741864,38.08,142.48,142.36,15.36927095]
[1745195742466,38.08,142.48,142.38,7.0243]
[1745195742666,38.08,142.48,142.33,15.36927095]
[1745195742960,15.36927095,142.46,142.34,7.3724839]
[1745195743163,15.36927095,142.43,142.3,11.4869]
[1745195743365,63.12855919,142.42,142.31,7.0276]
[1745195743663,63.12855919,142.42,142.3,7.6959]